bitfinex/quotes_ETHUSD_20250210
["timestamp","ask_amount","ask_price","bid_price","bid_amount"]
[1739230990804,3.16622678,2660.8,2660.7,5.9355289]
[1739230991215,3.16622678,2660.8,2660.7,5.89794859]
[1739230991585,3.16622678,2660.8,2660.7,5.93552891]
[1739230992121,3.16622678,2660.8,2660.7,6.63948907]
[1739230992686,1.68545567,2660.8,2660.7,6.63948907]
[1739230992890,3.79547794,2660.8,2660.7,6.67706933]
[1739230993185,3.79547794,2660.8,2660.7,7.18948907]
[1739230993387,3.79547794,2660.8,2660.7,15.93948907]
[1739230993622,3.79547794,2660.8,2660.7,15.38948907]
[1739230993826,3.75826,2660.8,2660.7,14.61068907]
[1739230995324,3.75826,2660.8,2660.7,15.93948907]
[1739230995823,3.75826,2660.8,2660.7,15.38948907]
[1739230998942,3.75826,2660.8,2660.7,14.59568907]
[1739230999453,3.75826,2660.8,2660.7,5.84568907]
[1739230999798,4.51976,2660.8,2660.7,5.84568907]
[1739231001596,7.51976,2660.8,2660.7,5.84568907]
[1739231003339,7.70450182,2660.8,2660.7,5.10414859]
[1739231003712,7.70450182,2660.8,2660.3,0.015]
[1739231003713,3.75883,2660.4,2660.3,0.015]
[1739231003927,3.75883,2660.4,2660.3,5.11914859]
[1739231004238,3.75883,2660.4,2660.3,5.66914859]
[1739231004426,3.75883,2660.4,2660.3,6.45714859]
[1739231005842,3.75883,2660.4,2660.3,7.21438856]
[1739231008204,3.75883,2660.4,2660.3,15.96438856]
[1739231008845,3.75883,2660.4,2660.3,15.41438856]
[1739231009031,3.75883,2660.4,2660.3,14.62638856]
[1739231009343,3.75883,2660.4,2660.3,14.61138856]
[1739231014240,3.75883,2660.4,2660.3,5.86138856]
[1739231017124,3.75883,2660.4,2660.3,5.42428238]
[1739231017325,4.51363,2660.4,2660.3,5.27952238]
[1739231017754,3.75883,2660.4,2660.3,5.27952238]
[1739231035381,3.75883,2660.4,2660.3,5.29452238]
[1739231040423,3.75883,2660.4,2660.3,5.27952238]
[1739231040809,4.51713,2660.4,2660.3,3.40003238]
[1739231043933,4.51713,2660.4,2660.3,0.75723997]
[1739231046033,3.75911,2660.2,2660.1,2.64279241]
[1739231046420,3.75911,2660.2,2659.9,0.77066241]
[1739231046735,3.75939,2660.0,2659.9,0.76316241]
[1739231049156,3.75939,2660.0,2659.9,1.51903521]
[1739231062489,3.75939,2660.0,2659.9,1.53403521]
[1739231074153,3.75939,2660.0,2659.9,2.87093521]
[1739231074339,3.0007965,2660.0,2659.9,2.87093521]
[1739231075040,3.0007965,2660.0,2659.9,6.63293521]
[1739231075247,2.2447965,2660.0,2659.9,6.63293521]
[1739231075461,3.75927,2660.1,2660.0,0.8019]
[1739231077445,3.75913,2660.2,2660.1,0.565]
[1739231077646,3.75887,2660.4,2660.2,0.015]
[1739231077945,3.75887,2660.4,2660.3,1.3519]
[1739231078143,3.75869,2660.5,2660.4,1.3519]
[1739231078692,3.75812,2660.9,2660.8,0.0075]
[1739231079682,3.75812,2660.9,2660.8,0.77066241]
[1739231079993,3.75812,2660.9,2660.8,1.32816241]
[1739231080197,3.75812,2660.9,2660.8,2.11506241]
[1739231080913,3.75812,2660.9,2660.8,0.77816241]
[1739231085182,3.75812,2660.9,2660.8,1.52601302]
[1739231097211,3.75812,2660.9,2660.8,1.51101302]
[1739231098492,3.75812,2660.9,2660.8,1.52601302]
[1739231099515,4.52372,2660.9,2660.8,1.51101302]
[1739231099717,4.52372,2660.9,2660.8,0.76316241]
[1739231100891,3.75812,2660.9,2660.8,0.77816241]
[1739231104220,3.75812,2660.9,2660.8,0.76316241]
[1739231104424,4.52372,2660.9,2660.8,0.76316241]
[1739231105938,3.7584,2660.7,2660.6,8.75]
[1739231106134,4.524,2660.7,2660.6,8.75]
[1739231106742,3.75911,2660.2,2660.1,0.21121755]
[1739231108066,3.75911,2660.2,2660.1,0.9720082]
[1739231109883,3.75898,2660.3,2660.2,0.015]
[1739231111223,3.75898,2660.3,2660.2,0.8007]
[1739231111724,3.75898,2660.3,2660.2,1.3507]
[1739231112068,3.75859,2660.6,2660.5,0.55]
[1739231112282,3.75859,2660.6,2660.5,5.94]
[1739231112573,3.75842,2660.7,2660.5,5.955]
[1739231116639,3.7584,2660.7,2660.5,5.955]
[1739231117595,3.75855,2660.6,2660.5,5.955]
[1739231120172,3.7584,2660.7,2660.5,5.955]
[1739231120376,3.75819,2660.9,2660.6,1.3507]
[1739231120578,3.75819,2660.9,2660.8,0.015]
[1739231124018,3.75791,2661.1,2661.0,0.015]
[1739231124239,3.75791,2661.1,2661.0,5.405]
[1739231126520,3.75791,2661.1,2661.0,5.39]
[1739231128520,3.75791,2661.1,2661.0,6.13127282]
[1739231130223,4.53511,2661.1,2661.0,6.13127282]
[1739231131437,3.75791,2661.1,2661.0,6.13127282]
[1739231136186,3.75791,2661.1,2661.0,6.93217282]
[1739231136536,2.94128577,2661.1,2661.0,6.93217282]
[1739231136797,2.89896,2661.5,2661.3,0.565]
[1739231136976,3.75742,2661.4,2661.3,0.565]
[1739231141993,3.75742,2661.4,2661.3,14.705]
[1739231143589,3.7573,2661.5,2661.3,14.705]
[1739231146094,3.75709,2661.7,2661.6,0.015]
[1739231146410,3.7568,2661.9,2661.6,5.405]
[1739231146753,3.75685,2661.8,2661.6,5.405]
[1739231149113,3.75699,2661.7,2661.6,5.955]
[1739231151511,3.75699,2661.7,2661.6,6.71694701]
[1739231162024,3.75686,2661.8,2661.6,6.71694701]
[1739231162329,3.75699,2661.7,2661.6,6.71694701]
[1739231163030,3.75686,2661.8,2661.6,6.71694701]
[1739231163325,7.51378,2661.8,2661.6,6.71694701]
[1739231163519,3.75699,2661.7,2661.6,6.71694701]
[1739231165245,3.75699,2661.7,2661.6,6.16694701]
[1739231166443,4.53873,2662.2,2661.8,0.015]
[1739231166444,7.51335,2662.0,2661.8,0.015]
[1739231166648,3.75667,2662.0,2661.8,0.015]
[1739231166950,3.75671,2661.9,2661.8,0.015]
[1739231168741,3.75671,2661.9,2661.8,14.705]
[1739231171817,4.53848,2662.4,2662.0,0.015]
[1739231172045,4.53848,2662.4,2662.2,0.0075]
[1739231172239,3.75578,2662.6,2662.2,0.0075]
[1739231172240,3.75593,2662.5,2662.2,0.0075]
[1739231172439,3.75601,2662.4,2662.2,0.0075]
[1739231172748,7.51214,2662.4,2662.2,0.0075]
[1739231172953,3.75615,2662.3,2662.2,0.0075]
[1739231173124,3.75601,2662.4,2662.2,0.565]
[1739231173329,7.51212,2662.4,2662.2,0.565]
[1739231173715,3.75615,2662.3,2662.2,0.565]
[1739231174851,3.75601,2662.4,2662.2,0.565]
[1739231175043,3.75601,2662.4,2662.3,0.7945]
[1739231175549,3.75587,2662.5,2662.4,0.015]
[1739231176872,4.51655,2663.0,2662.6,0.0075]
[1739231177081,0.7613,2663.0,2662.6,0.04505382]
[1739231177379,3.75537,2662.9,2662.6,0.5575]
[1739231177733,4.51655,2663.0,2662.6,0.5575]
[1739231177956,3.75544,2662.8,2662.6,0.5575]
[1739231178120,3.75558,2662.7,2662.6,0.5575]
[1739231178552,3.75552,2662.8,2662.6,0.5575]
[1739231178759,3.75558,2662.7,2662.6,0.5575]
[1739231180061,4.51656,2663.0,2662.6,0.5575]
[1739231180268,3.75546,2662.8,2662.6,0.5575]
[1739231182125,3.75526,2663.0,2662.6,0.5575]
[1739231182325,3.75531,2662.9,2662.6,0.5575]
[1739231182524,3.75539,2662.9,2662.6,0.5575]
[1739231182724,3.7553,2662.9,2662.6,0.5575]
[1739231182925,3.75541,2662.9,2662.6,0.5575]
[1739231184349,3.75525,2663.0,2662.6,0.5575]
[1739231184527,3.75554,2662.8,2662.6,0.5575]
[1739231186482,3.75554,2662.8,2662.7,5.3975]
[1739231195472,3.75554,2662.8,2662.7,5.39]
[1739231195672,0.8162,2662.7,2662.5,1.63442]
[1739231195969,3.75572,2662.6,2662.5,1.63442]
[1739231196559,4.57192,2662.6,2662.5,1.63442]
[1739231200976,4.7600419,2662.6,2662.5,1.63442]
[1739231201349,3.75586,2662.5,2662.4,0.73787034]
[1739231202492,3.75586,2662.5,2662.4,1.28787034]
[1739231202682,3.75573,2662.6,2662.5,0.565]
[1739231202878,3.75573,2662.6,2662.5,1.3361]
[1739231204574,3.75527,2663.0,2662.6,0.0075]
[1739231204774,3.75544,2662.8,2662.6,0.04505328]
[1739231204998,7.511,2662.8,2662.6,0.015]
[1739231205571,3.75544,2662.8,2662.6,0.015]
[1739231205794,7.51099,2662.8,2662.6,0.015]
[1739231206474,7.51098,2662.8,2662.6,0.015]
[1739231206670,3.75524,2663.0,2662.6,0.015]
[1739231207388,3.75531,2662.9,2662.8,0.0075]
[1739231211080,3.75531,2662.9,2662.8,1.30625113]
[1739231212002,7.51052,2663.0,2662.8,3.71177113]
[1739231212205,3.75524,2663.0,2662.8,3.71177113]
[1739231212501,3.7553,2662.9,2662.8,3.71177113]
[1739231212690,3.7553,2662.9,2662.8,2.94067113]
[1739231214792,3.7553,2662.9,2662.8,2.38317113]
[1739231214793,4.5619,2662.9,2662.8,2.38317113]
[1739231217410,0.8066,2663.3,2662.8,2.38317113]
[1739231217713,3.7553,2662.9,2662.8,2.38317113]
[1739231218079,4.5619,2662.9,2662.8,2.38317113]
[1739231220314,3.7553,2662.9,2662.8,2.39067113]
[1739231220813,4.5619,2662.9,2662.8,0.74875113]
[1739231220998,4.56232,2662.6,2662.5,1.63442]
[1739231221382,4.56232,2662.6,2662.5,2.38069594]
[1739231222005,4.56232,2662.6,2662.5,1.63442]
[1739231222195,3.75629,2662.2,2662.1,1.63442]
[1739231223542,4.56289,2662.2,2662.1,1.63442]
[1739231224002,4.56289,2662.2,2662.1,2.39362628]
[1739231226830,4.56289,2662.2,2662.1,1.63442]
[1739231227502,3.75629,2662.2,2662.1,1.63442]
[1739231231259,3.75602,2662.4,2662.2,0.0075]
[1739231231414,3.75602,2662.4,2662.3,0.8066]
[1739231234167,3.75602,2662.4,2662.3,1.64192]
[1739231242485,3.75573,2662.6,2662.4,0.5575]
[1739231242628,3.75573,2662.6,2662.5,1.3667]
[1739231243451,3.75555,2662.8,2662.6,0.0075]
[1739231243452,3.75564,2662.7,2662.6,0.0075]
[1739231245585,3.75508,2663.1,2662.6,1.64192]
[1739231245765,3.75515,2663.1,2662.8,0.7644]
[1739231245962,3.7553,2662.9,2662.8,0.7644]
[1739231248986,3.7553,2662.9,2662.8,2.39882]
[1739231249183,3.7553,2662.9,2662.8,1.64192]
[1739231253151,3.7553,2662.9,2662.8,1.63442]
[1739231263984,4.5519,2662.9,2662.8,1.63442]
[1739231265198,4.5519,2662.9,2662.6,0.73533281]
[1739231265373,3.75558,2662.7,2662.6,0.73533281]
[1739231265772,3.75572,2662.6,2662.5,8.75]
[1739231266287,3.75616,2662.3,2661.9,1.0277]
[1739231266490,3.75657,2662.0,2661.9,1.0277]
[1739231266693,3.75657,2662.0,2661.9,2.54600513]
[1739231266854,3.75657,2662.0,2661.9,2.27500513]
[1739231268396,3.75644,2662.1,2662.0,0.0075]
[1739231270301,3.75644,2662.1,2662.0,0.565]
[1739231270499,3.75644,2662.1,2662.0,6.7117]
[1739231272018,3.75644,2662.1,2662.0,5.39]
[1739231281332,3.75644,2662.1,2662.0,5.955]
[1739231281512,3.75644,2662.1,2662.0,6.7323]
[1739231282186,3.75644,2662.1,2662.0,5.39]
[1739231284100,4.50974,2662.1,2662.0,5.39]
[1739231286214,3.75644,2662.1,2662.0,5.3975]
[1739231290011,3.75644,2662.1,2662.0,5.39]
[1739231290215,4.52474,2662.1,2662.0,5.39]
[1739231292421,3.75644,2662.1,2662.0,5.39]
[1739231293451,3.75644,2662.1,2661.9,0.75719644]
[1739231293452,3.75657,2662.0,2661.9,0.75719644]
[1739231297260,3.75657,2662.0,2661.9,1.55379644]
[1739231298852,3.75644,2662.1,2662.0,0.0075]
[1739231299436,3.75644,2662.1,2662.0,5.3975]
[1739231301830,4.52474,2662.1,2662.0,5.39]
[1739231305428,3.75657,2662.0,2661.9,0.75719644]
[1739231308044,3.75657,2662.0,2661.9,1.54069644]
[1739231311262,3.75657,2662.0,2661.9,6.93069644]
[1739231315396,3.75644,2662.1,2662.0,0.0075]
[1739231316875,3.75627,2662.3,2662.1,0.776]
[1739231317202,3.75629,2662.2,2662.1,0.7835]
[1739231321375,3.75657,2662.0,2661.9,6.14719644]
[1739231321995,3.75657,2662.0,2661.9,6.15469644]
[1739231323594,3.75657,2662.0,2661.9,7.48069644]
[1739231324607,3.75645,2662.1,2662.0,0.0075]
[1739231327510,3.7563,2662.2,2662.0,0.565]
[1739231327688,3.7563,2662.2,2662.1,1.3335]
[1739231329202,3.7563,2662.2,2662.1,6.7235]
[1739231330497,3.7563,2662.2,2662.1,5.9475]
[1739231330707,4.51,2662.2,2662.1,5.39]
[1739231334995,3.75657,2662.0,2661.9,6.14719644]
[1739231341028,3.75657,2662.0,2661.9,0.75719644]
[1739231353524,6.75657,2662.0,2661.9,0.75719644]
[1739231353728,6.75657,2662.0,2661.1,9.512]
[1739231353729,3.7577,2661.2,2661.1,9.512]
[1739231354054,3.7577,2661.2,2661.1,1.70226669]
[1739231354624,3.7577,2661.2,2661.1,1.70976669]
[1739231366089,3.75757,2661.3,2661.2,0.5575]
[1739231366267,3.75757,2661.3,2661.2,0.565]
[1739231368491,3.7577,2661.2,2661.1,1.70226669]
[1739231368666,3.7577,2661.2,2661.1,0.94026669]
[1739231369196,3.7577,2661.2,2661.1,0.94776669]
[1739231377332,3.75749,2661.4,2661.2,0.565]
[1739231377643,6.75738,2661.5,2661.4,0.565]
[1739231378495,3.75738,2661.5,2661.4,0.565]
[1739231378701,3.75714,2661.6,2661.4,0.565]
[1739231378904,3.75714,2661.6,2661.5,0.7925]
[1739231380156,3.75693,2661.8,2661.5,0.7925]
[1739231380157,7.51392,2661.8,2661.5,0.7925]
[1739231380431,3.75709,2661.7,2661.5,6.1825]
[1739231381527,3.75693,2661.8,2661.6,0.0075]
[1739231383350,0.7739,2662.1,2661.6,0.565]
[1739231383649,3.75657,2662.0,2661.8,0.0075]
[1739231384227,3.75657,2662.0,2661.8,5.3975]
[1739231384636,3.75639,2662.2,2662.0,0.0075]
[1739231384839,3.75639,2662.2,2662.0,0.7925]
[1739231385360,7.51276,2662.2,2662.0,0.7925]
[1739231385655,3.75637,2662.2,2662.0,0.7925]
[1739231386049,3.75643,2662.1,2662.0,0.7925]
[1739231389591,3.75637,2662.2,2662.0,0.7925]
[1739231389790,7.51275,2662.2,2662.0,0.7925]
[1739231389937,3.75637,2662.2,2662.0,0.7925]
[1739231390340,3.75643,2662.1,2662.0,0.7925]
[1739231392972,3.75608,2662.4,2662.2,0.0075]
[1739231393176,0.7813,2662.8,2662.2,5.9475]
[1739231393373,0.7813,2662.8,2662.4,0.0075]
[1739231393374,3.7558,2662.6,2662.4,0.0075]
[1739231395983,3.75586,2662.5,2662.4,0.0075]
[1739231398399,3.75573,2662.6,2662.4,5.955]
[1739231399099,3.75573,2662.6,2662.4,6.70116205]
[1739231401422,3.75558,2662.7,2662.4,6.70116205]
[1739231401567,3.75586,2662.5,2662.4,6.70116205]
[1739231402520,3.75586,2662.5,2662.4,6.14366205]
[1739231402801,3.75586,2662.5,2662.4,6.13616205]
[1739231403309,3.75586,2662.5,2662.4,6.69366205]
[1739231407303,4.53703,2662.6,2662.4,6.69366205]
[1739231407605,3.75573,2662.6,2662.5,0.0075]
[1739231411791,3.75573,2662.6,2662.5,0.769]
[1739231412188,3.75573,2662.6,2662.5,1.3265]
[1739231412499,3.75564,2662.7,2662.5,1.3265]
[1739231412810,7.51134,2662.7,2662.6,5.3975]
[1739231413009,7.51134,2662.7,2662.6,5.955]
[1739231414412,7.51134,2662.7,2662.6,5.39]
[1739231415180,8.34384,2662.7,2662.6,5.39]
[1739231419584,7.51134,2662.7,2662.6,5.39]
[1739231420617,3.75564,2662.7,2662.6,6.7165]
[1739231421998,3.75564,2662.7,2662.6,5.955]
[1739231422425,3.75564,2662.7,2662.6,5.3975]
[1739231422991,3.75564,2662.7,2662.6,5.39]
[1739231423416,3.75564,2662.7,2662.6,5.3975]
[1739231424916,4.53014,2662.7,2662.6,5.39]
[1739231430038,0.7745,2662.7,2662.4,0.74616205]
[1739231430264,3.75586,2662.5,2662.4,0.74616205]
[1739231431440,3.75586,2662.5,2662.4,2.13646205]
[1739231432732,3.75572,2662.6,2662.5,0.5575]
[1739231433750,3.8359509,2662.6,2662.5,0.5575]
[1739231434804,3.8359509,2662.6,2662.5,0.565]
[1739231436048,3.8359509,2662.6,2662.5,5.955]
[1739231440314,3.8359509,2662.6,2662.5,5.9475]
[1739231446020,3.8359509,2662.6,2662.5,5.39]
[1739231446216,4.6032509,2662.6,2662.5,5.39]
[1739231447969,3.75586,2662.5,2662.4,0.74616205]
[1739231448419,3.83510997,2662.5,2662.4,0.74616205]
[1739231459965,3.83510997,2662.5,2662.4,0.69616205]
[1739231463198,0.07924997,2662.5,2662.4,2.08396205]
[1739231463374,3.75558,2662.7,2662.6,0.0075]
[1739231463569,3.67633003,2662.7,2662.6,0.0075]
[1739231464469,3.75543,2662.9,2662.6,0.0075]
[1739231464670,3.7553,2662.9,2662.8,0.0075]
[1739231465681,3.7553,2662.9,2662.8,5.3975]
[1739231467065,3.83049052,2662.9,2662.8,5.3975]
[1739231471409,3.83049052,2662.9,2662.8,6.14240316]
[1739231472611,0.07519052,2662.9,2662.8,6.14240316]
[1739231472798,0.7849,2663.3,2662.8,6.14240316]
[1739231472799,3.75509,2663.1,2663.0,0.0075]
[1739231474819,3.7597,2663.4,2663.2,0.0075]
[1739231475004,3.75474,2663.3,2663.2,0.0075]
[1739231478247,3.75474,2663.3,2663.2,0.75196611]
[1739231478848,3.82818034,2663.3,2663.2,0.75196611]
[1739231480208,0.07344034,2663.3,2663.2,0.75196611]
[1739231480634,0.07344034,2663.3,2663.2,6.14196611]
[1739231480953,3.82818034,2663.3,2663.2,6.14196611]
[1739231481446,0.07344034,2663.3,2663.2,6.69946611]
[1739231482204,4.65058034,2663.3,2663.2,6.69946611]
[1739231482410,4.65058034,2663.3,2663.2,6.14196611]
[1739231488261,3.82818034,2663.3,2663.2,6.14196611]
[1739231490066,3.82818034,2663.3,2663.2,7.46136611]
[1739231503040,3.82818034,2663.3,2663.2,6.69946611]
[1739231505818,3.82818034,2663.3,2663.2,6.14196611]
[1739231506616,7.58988034,2663.3,2663.2,6.13446611]
[1739231506821,7.58988034,2663.3,2663.2,5.39]
[1739231508047,6.82818034,2663.3,2663.2,5.39]
[1739231510551,3.75488,2663.2,2663.1,0.77530841]
[1739231510914,3.82047238,2663.2,2663.1,0.78280841]
[1739231511235,3.82047238,2663.2,2663.1,1.33280841]
[1739231515949,3.82047238,2663.2,2663.1,1.58160841]
[1739231516331,3.82047238,2663.2,2663.1,6.97160841]
[1739231516940,3.82047238,2663.2,2663.1,6.41410841]
[1739231517250,4.63657238,2663.2,2663.1,6.41410841]
[1739231519552,4.63657238,2663.2,2663.1,6.40660841]
[1739231519722,7.63657238,2663.2,2663.1,6.40660841]
[1739231520993,7.63657238,2663.2,2663.1,1.88378]
[1739231521162,3.7553,2662.9,2662.7,0.00627]
[1739231521336,3.75544,2662.8,2662.7,0.00627]
[1739231521535,3.82026133,2662.8,2662.7,0.00627]
[1739231521738,3.82026133,2662.8,2662.7,0.20231153]
[1739231522550,3.82026133,2662.8,2662.7,0.95674339]
[1739231523562,0.06482133,2662.8,2662.7,2.32604339]
[1739231523932,3.75519,2663.0,2662.9,0.0075]
[1739231525155,3.75519,2663.0,2662.9,0.02127]
[1739231525744,0.8161,2663.3,2663.0,0.8193]
[1739231525745,7.50968,2663.3,2663.0,0.8193]
[1739231526068,3.75502,2663.1,2663.0,1.3693]
[1739231527568,3.81791734,2663.1,2663.0,1.3693]
[1739231530767,0.06289734,2663.1,2663.0,1.3693]
[1739231531070,0.06289734,2663.1,2663.0,11.40073]
[1739231531577,0.005,2663.4,2663.3,1.3791]
[1739231531730,0.005,2663.4,2663.3,5.13384]
[1739231531936,0.005,2663.4,2663.3,1.3791]
[1739231533972,0.005,2663.4,2663.3,1.41664242]
[1739231534346,0.005,2663.4,2663.3,1.3791]
[1739231535534,0.06839283,2663.4,2663.3,1.3791]
[1739231536033,0.005,2663.4,2663.3,2.1320157]
[1739231537083,0.005,2663.4,2663.3,8.4082857]
[1739231537763,0.06728623,2663.4,2663.3,8.4082857]
[1739231541189,3.82187623,2663.4,2663.3,8.4082857]
[1739231541491,3.82187623,2663.4,2663.3,7.5941857]
[1739231543521,0.06728623,2663.4,2663.3,7.5941857]
[1739231544052,3.82187623,2663.4,2663.3,7.5941857]
[1739231547962,3.82187623,2663.4,2663.3,7.0366857]
[1739231548174,4.58087623,2663.4,2663.3,7.0366857]
[1739231548896,4.58087623,2663.4,2663.3,0.7666857]
[1739231559306,3.82187623,2663.4,2663.3,0.7666857]
[1739231574720,0.06728623,2663.4,2663.3,2.1437857]
[1739231575620,3.82187623,2663.4,2663.3,2.1437857]
[1739231579937,3.51307611,2663.4,2663.3,2.1437857]
[1739231596090,3.51307611,2663.4,2663.3,0.7741857]
[1739231596260,3.51307611,2663.4,2663.3,0.7666857]
[1739231596560,3.51315977,2663.4,2663.3,0.7666857]
[1739231596948,3.46272941,2663.4,2663.3,0.7666857]
[1739231597157,3.51315698,2663.4,2663.3,0.7666857]
[1739231599466,3.51315698,2663.4,2663.3,2.0771857]
[1739231601333,3.51315698,2663.4,2663.3,1.3241857]
[1739231602265,3.51315698,2663.4,2663.3,0.7741857]
[1739231603603,3.51315698,2663.4,2663.3,0.7666857]
[1739231603770,3.51315698,2663.4,2663.3,0.7591857]
[1739231604372,4.33025698,2663.4,2663.3,0.7591857]
[1739231606592,7.33025698,2663.4,2663.3,0.7529157]
[1739231607079,3.75488,2663.2,2663.1,0.00627]
[1739231607293,7.57198,2663.2,2663.1,0.00627]
[1739231607488,7.62201873,2663.2,2663.1,0.00627]
[1739231610295,7.81064447,2663.2,2663.1,0.00627]
[1739231611496,3.75558,2662.7,2662.6,0.01377]
[1739231611884,3.80505991,2662.7,2662.6,0.01377]
[1739231612861,3.80505991,2662.7,2662.6,0.7612073]
[1739231627507,3.80505991,2662.7,2662.6,2.1444073]
[1739231628704,3.75558,2662.7,2662.6,2.1444073]
[1739231629001,3.80462324,2662.7,2662.6,2.1444073]
[1739231636524,0.04904324,2662.7,2662.6,2.1444073]
[1739231636810,3.7553,2662.9,2662.7,0.015]
[1739231637012,3.75545,2662.8,2662.7,0.015]
[1739231640421,3.80291182,2662.8,2662.7,0.015]
[1739231641143,3.80291182,2662.8,2662.7,0.02127]
[1739231645835,3.75545,2662.8,2662.7,0.02127]
[1739231648127,3.80288163,2662.8,2662.7,0.02127]
[1739231650136,3.80288163,2662.8,2662.7,0.00627]
[1739231650596,6.80288163,2662.8,2662.6,0.7474373]
[1739231650792,3.0,2662.7,2662.4,0.00627]
[1739231650996,4.56716,2662.5,2662.4,0.00627]
[1739231651528,4.61422938,2662.5,2662.4,0.00627]
[1739231652231,7.61422938,2662.5,2662.4,0.00627]
[1739231652435,3.75615,2662.3,2662.2,0.74694691]
[1739231652804,3.80302622,2662.3,2662.2,0.74694691]
[1739231656106,3.75657,2662.0,2661.9,0.00627]
[1739231656529,4.61431128,2662.0,2661.9,0.00627]
[1739231658358,4.61431128,2662.0,2661.9,0.74269054]
[1739231659258,4.80209761,2662.0,2661.9,0.74269054]
[1739231659912,4.61431128,2662.0,2661.9,0.74269054]
[1739231661917,4.61431128,2662.0,2661.9,0.73642054]
[1739231664361,3.80301128,2662.0,2661.9,0.73642054]
[1739231680381,3.75671,2661.9,2661.8,0.00627]
[1739231680678,3.80037085,2661.9,2661.8,0.00627]
[1739231684482,3.80037085,2661.9,2661.8,0.75838605]
[1739231700605,3.80037085,2661.9,2661.2,0.82]
[1739231700606,3.75713,2661.6,2661.5,0.00627]
[1739231700906,3.79640298,2661.6,2661.5,0.00627]
[1739231701423,3.7577,2661.2,2661.1,0.01377]
[1739231701788,3.79658358,2661.2,2661.1,0.01377]
[1739231702815,3.79658358,2661.2,2661.1,0.75819041]
[1739231704934,0.03888358,2661.2,2661.1,2.10189041]
[1739231705121,3.75728,2661.5,2661.3,0.0075]
[1739231705809,7.51464,2661.5,2661.3,0.0075]
[1739231705996,3.75728,2661.5,2661.3,0.0075]
[1739231706197,7.51464,2661.5,2661.3,0.0075]
[1739231706397,3.75728,2661.5,2661.3,0.01377]
[1739231706597,3.75728,2661.5,2661.4,1.3437]
[1739231707637,3.7948227,2661.5,2661.4,1.3437]
[1739231709267,0.0375427,2661.5,2661.4,1.3512]
[1739231711938,3.75714,2661.6,2661.5,0.015]
[1739231712356,3.75714,2661.6,2661.5,0.02127]
[1739231712873,3.757,2661.7,2661.5,0.02127]
[1739231713756,3.75713,2661.6,2661.5,0.02127]
[1739231715471,3.79481682,2661.6,2661.5,0.02127]
[1739231716276,3.79481682,2661.6,2661.5,0.78932631]
[1739231719086,0.03768682,2661.6,2661.5,0.78932631]
[1739231719405,3.75668,2662.0,2661.8,0.827]
[1739231719555,3.75682,2661.9,2661.8,0.83327]
[1739231722469,3.75668,2662.0,2661.8,0.83327]
[1739231723058,0.0372633,2661.9,2661.8,0.83327]
[1739231725317,0.0372633,2661.9,2661.8,0.57127]
[1739231725515,0.0372633,2661.9,2661.8,5.18981459]
[1739231725701,3.75616,2662.3,2662.0,0.8304]
[1739231726019,3.75616,2662.3,2662.1,0.015]
[1739231726218,0.03672706,2662.2,2662.1,0.015]
[1739231726516,3.75616,2662.3,2662.1,0.015]
[1739231726720,0.03677986,2662.2,2662.1,0.015]
[1739231727103,3.75616,2662.3,2662.1,0.015]
[1739231727417,0.03677986,2662.2,2662.1,0.015]
[1739231727780,3.75616,2662.3,2662.1,0.015]
[1739231728015,0.03677986,2662.2,2662.1,0.015]
[1739231728201,0.03677986,2662.2,2662.1,0.8454]
[1739231728399,3.75616,2662.3,2662.1,0.8454]
[1739231728606,3.79306986,2662.2,2662.1,0.8454]
[1739231729230,0.03677986,2662.2,2662.1,0.8454]
[1739231729612,3.75616,2662.3,2662.1,0.8454]
[1739231729816,0.03677986,2662.2,2662.1,1.59814477]
[1739231730237,3.75616,2662.3,2662.1,1.59814477]
[1739231730527,0.03677986,2662.2,2662.1,1.59814477]
[1739231730715,3.75616,2662.3,2662.1,1.59814477]
[1739231730903,0.03677986,2662.2,2662.1,1.59814477]
[1739231731306,3.75616,2662.3,2662.1,1.59814477]
[1739231731701,0.03677986,2662.2,2662.1,1.59814477]
[1739231732131,3.75616,2662.3,2662.1,1.59814477]
[1739231732326,0.03677986,2662.2,2662.1,1.59814477]
[1739231732830,3.75595,2662.5,2662.1,1.59814477]
[1739231733205,7.51189,2662.5,2662.1,1.59814477]
[1739231733620,7.51188,2662.5,2662.2,0.55]
[1739231733822,0.03697305,2662.4,2662.3,0.015]
[1739231734606,3.79297305,2662.4,2662.3,0.015]
[1739231736131,3.79297305,2662.4,2662.3,0.02127]
[1739231740652,0.03697305,2662.4,2662.3,0.02127]
[1739231741135,0.03650016,2662.4,2662.3,0.02127]
[1739231743149,3.75594,2662.5,2662.3,0.02127]
[1739231743351,3.756,2662.4,2662.3,0.02127]
[1739231756962,4.5079,2662.4,2662.3,0.00627]
[1739231757837,3.75671,2661.9,2661.8,0.00627]
[1739231758154,4.50861,2661.9,2661.8,0.00627]
[1739231761125,3.75671,2661.9,2661.8,0.57127]
[1739231761474,3.75671,2661.9,2661.8,0.00627]
[1739231764279,4.54231,2661.9,2661.8,0.00627]
[1739231771747,3.75671,2661.9,2661.8,0.00627]
[1739231776542,3.75671,2661.9,2661.8,0.78717]
[1739231777036,3.75637,2662.2,2661.9,0.015]
[1739231777348,3.75637,2662.2,2662.1,0.015]
[1739231780682,3.75637,2662.2,2662.1,0.02127]
[1739231782498,3.75637,2662.2,2662.1,0.75826725]
[1739231785191,3.75637,2662.2,2662.1,0.74326725]
[1739231788289,3.75637,2662.2,2662.1,1.58766725]
[1739231790607,3.75637,2662.2,2662.1,0.75826725]
[1739231794897,3.75637,2662.2,2662.1,1.58766725]
[1739231795407,3.75616,2662.3,2662.1,1.58766725]
[1739231795827,3.75616,2662.3,2662.2,0.015]
[1739231798570,3.75616,2662.3,2662.2,0.02127]